fUST/lending_fUST_20250817
["ID","MTS","AMOUNT","RATE_DAILY","PERIOD"]
[379930008,1755442258172,-1000.0,0.00019563,2]
[379930010,1755442258181,-480.0,0.00019563,2]
[379930012,1755442258191,-480.0,0.00019563,2]
[379930014,1755442258200,-480.0,0.00019563,2]
[379930016,1755442258209,-480.0,0.00019563,2]
[379930018,1755442258219,-480.0,0.00019563,2]
[379930020,1755442258228,-480.0,0.00019563,2]
[379930022,1755442258238,-7675.82,0.00019563,2]
[379930024,1755442258247,-990.44,0.00019563,2]
[379930026,1755442258256,-5032.79,0.00019563,2]
[379930028,1755442258265,-404.08609851,0.00019563,2]
[379930030,1755442258275,-462.08059744,0.00019564,2]
[379930032,1755442258284,-480.0,0.00019564,2]
[379930034,1755442258294,-480.0,0.00019564,2]
[379930036,1755442258304,-480.06418187,0.00019564,2]
[379930038,1755442258313,-480.0,0.00019564,2]
[379930040,1755442258323,-480.0,0.00019564,2]
[379930042,1755442258332,-480.0,0.00019564,2]
[379930044,1755442258341,-480.0,0.00019564,2]
[379930046,1755442258351,-480.0,0.00019564,2]
[379930048,1755442258360,-480.0,0.00019564,2]
[379930050,1755442258369,-480.0,0.00019564,2]
[379930052,1755442258379,-480.0,0.00019564,2]
[379930053,1755442258389,-788.99,0.00019564,2]
[379930056,1755442258399,-613.42,0.00019564,2]
[379930057,1755442258408,-480.0,0.00019564,2]
[379930059,1755442258417,-581.88,0.00019564,2]
[379930062,1755442258427,-480.0,0.00019564,2]
[379930064,1755442258437,-480.0,0.00019564,2]
[379930066,1755442258447,-1673.56,0.00019564,2]
[379930068,1755442258456,-480.0,0.00019564,2]
[379930070,1755442258466,-2358.67,0.00019564,2]
[379930072,1755442258476,-303.51734552,0.00019564,2]
[379930074,1755442258488,-480.0,0.00019565,2]
[379930076,1755442258498,-151.0,0.00019565,2]
[379930078,1755442258508,-151.0,0.00019565,2]
[379930080,1755442258518,-151.0,0.00019565,2]
[379930082,1755442258527,-151.0,0.00019565,2]
[379930084,1755442258536,-151.0,0.00019565,2]
[379930085,1755442258546,-151.0,0.00019565,2]
[379930087,1755442258555,-1000.0,0.00019566,2]
[379930089,1755442258564,-169.05621278,0.00019569,2]
[379930091,1755442258574,-675.54862628,0.00019569,2]
[379930093,1755442258583,-1008.91441769,0.00019572,2]
[379930095,1755442258592,-501.0519514,0.00019572,2]
[379930097,1755442258601,-674.05006771,0.00019577,2]
[379930099,1755442258615,-500.0,0.00019587,2]
[379930101,1755442258625,-1000.0,0.00019587,2]
[379930104,1755442258635,-1000.0,0.00019587,2]
[379930106,1755442258645,-151.0,0.000196,2]
[379930107,1755442258655,-160.0,0.000196,2]
[379930109,1755442258664,-1000.0,0.00019687,2]
[379930111,1755442258673,-170.005422,0.00019707,2]
[379930114,1755442258684,-151.0,0.00019707,2]
[379930116,1755442258694,-1000.0,0.00019715,2]
[379930118,1755442258704,-168.0,0.00019723,2]
[379930120,1755442258713,-151.0,0.00019726,2]
[379930122,1755442258725,-1582.74,0.0001973,3]
[379930124,1755442258734,-791.36,0.0001973,3]
[379930125,1755442258744,-395.68,0.0001973,3]
[379930127,1755442258753,-7979.42509711,0.00019739,2]
[379930129,1755442258762,-578.61201316,0.00019739,2]
[379930131,1755442258771,-527.36,0.00019739,2]
[379930133,1755442258781,-912.72,0.00019739,2]
[379930135,1755442258790,-480.0,0.00019739,2]
[379930137,1755442258799,-480.0,0.00019739,2]
[379930139,1755442258809,-563.11,0.00019739,2]
[379930141,1755442258818,-480.0,0.00019739,2]
[379930143,1755442258828,-480.0,0.00019739,2]
[379930145,1755442258837,-480.0,0.00019739,2]
[379930147,1755442258847,-591.29,0.00019739,2]
[379930149,1755442258857,-480.0,0.00019739,2]
[379930151,1755442258867,-1163.69,0.00019739,2]
[379930153,1755442258876,-480.0,0.00019739,2]
[379930155,1755442258886,-480.0,0.00019739,2]
[379930157,1755442258896,-480.0,0.00019739,2]
[379930159,1755442258906,-480.0,0.00019739,2]
[379930161,1755442258915,-908.19,0.00019739,2]
[379930162,1755442258924,-928.64,0.00019739,2]
[379930164,1755442258934,-480.0,0.00019739,2]
[379930166,1755442258943,-480.0,0.00019739,2]
[379930168,1755442258953,-480.0,0.00019739,2]
[379930170,1755442258962,-1949.06,0.00019739,2]
[379930172,1755442258971,-709.65,0.00019739,2]
[379930174,1755442258981,-480.0,0.00019739,2]
[379930176,1755442258991,-659.52,0.00019739,2]
[379930178,1755442259000,-480.0,0.00019739,2]
[379930180,1755442259009,-2225.78,0.00019739,2]
[379930182,1755442259019,-480.0,0.00019739,2]
[379930184,1755442259029,-1000.32,0.00019739,2]
[379930186,1755442259038,-291.35063297,0.00019739,2]
[379930188,1755442259049,-480.0,0.00019739,2]
[379930191,1755442259061,-1436.82,0.00019739,2]
[379930192,1755442259094,-6061.46,0.00019739,2]
[379930193,1755442259129,-480.0,0.00019739,2]
[379930194,1755442259139,-1175.2,0.00019739,2]
[379930195,1755442259150,-763.93,0.00019739,2]
[379930196,1755442259161,-480.0,0.00019739,2]
[379930197,1755442259171,-526.35,0.00019739,2]
[379930198,1755442259181,-480.0,0.00019739,2]
[379930199,1755442259190,-480.0,0.00019739,2]
[379930200,1755442259199,-480.0,0.00019739,2]
[379930201,1755442259209,-715.83,0.00019739,2]
[379930202,1755442259218,-480.0,0.00019739,2]
[379930203,1755442259227,-695.09,0.00019739,2]
[379930204,1755442259236,-480.0,0.00019739,2]
[379930206,1755442259246,-494.32,0.00019739,2]
[379930208,1755442259255,-480.0,0.00019739,2]
[379930210,1755442259265,-480.0,0.00019739,2]
[379930212,1755442259274,-480.0,0.00019739,2]
[379930214,1755442259284,-480.0,0.00019739,2]
[379930216,1755442259293,-504.66,0.00019739,2]
[379930218,1755442259303,-151.0,0.000198,2]
[379930220,1755442259313,-773.2551598,0.00019816,2]
[379930222,1755442259323,-431.9864578,0.00019816,2]
[379930224,1755442259332,-431.9864578,0.00019816,2]
[379930226,1755442259342,-431.9864578,0.00019816,2]
[379930228,1755442259351,-431.9864578,0.00019816,2]
[379930230,1755442259360,-151.89856321,0.0001982,2]
[379930232,1755442259369,-658.0,0.00019824,2]
[379930234,1755442259378,-759.02,0.00019828,3]
[379930236,1755442259388,-596.16,0.00019828,3]
[379930238,1755442259397,-431.5714303,0.00019829,2]
[379930240,1755442259407,-480.0,0.00019834,2]
[379930242,1755442259417,-480.0,0.00019834,2]
[379930244,1755442259426,-1819.3,0.00019834,2]
[379930246,1755442259435,-480.0,0.00019835,2]
[379930248,1755442259444,-483.85675554,0.00019835,2]
[379930250,1755442259454,-480.0,0.00019835,2]
[379930252,1755442259463,-480.0,0.00019835,2]
[379930254,1755442259473,-516.58110386,0.00019835,2]
[379930256,1755442259482,-480.0,0.00019835,2]
[379930258,1755442259491,-480.0,0.00019835,2]
[379930260,1755442259500,-480.0,0.00019835,2]
[379930262,1755442259510,-3256.49,0.00019835,2]
[379930264,1755442259519,-151.0,0.00019835,2]
[379930265,1755442259528,-638.93328612,0.00019836,2]
[379930267,1755442259538,-480.0,0.00019836,2]
[379930269,1755442259548,-480.0,0.00019836,2]
[379930271,1755442259557,-480.0,0.00019836,2]
[379930273,1755442259566,-480.0,0.00019836,2]
[379930275,1755442259575,-480.0,0.00019836,2]
[379930277,1755442259585,-518.78,0.00019836,2]
[379930279,1755442259594,-698.95,0.00019836,2]
[379930281,1755442259606,-480.0,0.00019836,2]
[379930283,1755442259617,-480.0,0.00019836,2]
[379930285,1755442259626,-687.45,0.00019836,2]
[379930287,1755442259636,-480.0,0.00019836,2]
[379930289,1755442259647,-191.77045413,0.00019836,2]
[379930291,1755442259656,-480.0,0.00019836,2]
[379930293,1755442259666,-480.0,0.00019836,2]
[379930295,1755442259676,-480.0,0.00019836,2]
[379930297,1755442259686,-480.0,0.00019836,2]
[379930299,1755442259697,-480.0,0.00019836,2]
[379930301,1755442259706,-455.45372945,0.00019836,2]
[379930303,1755442259715,-480.0,0.00019836,2]
[379930305,1755442259727,-549.85,0.00019836,2]
[379930307,1755442259736,-480.0,0.00019836,2]
[379930309,1755442259746,-480.0,0.00019836,2]
[379930322,1755442259860,-480.0,0.00019836,2]
[379930324,1755442259872,-460.0,0.00019836,2]
[379930326,1755442259882,-971.72,0.00019836,2]
[379930328,1755442259892,-480.0,0.00019836,2]
[379930330,1755442259902,-480.0,0.00019836,2]
[379930332,1755442259911,-573.88,0.00019836,2]
[379930334,1755442259921,-480.0,0.00019836,2]
[379930336,1755442259931,-173.064335,0.00019836,2]
[379930338,1755442259940,-173.064335,0.00019836,2]
[379930340,1755442259950,-556.17070994,0.00019836,2]
[379930342,1755442259959,-480.0,0.00019836,2]
[379930344,1755442259969,-719.18,0.00019836,2]
[379930346,1755442259979,-480.0,0.00019836,2]
[379930348,1755442259989,-467.23752898,0.00019836,2]
[379930350,1755442259998,-512.32827945,0.00019836,2]
[379930352,1755442260008,-480.0,0.00019836,2]
[379930354,1755442260018,-480.0,0.00019836,2]
[379930355,1755442260028,-480.0,0.00019836,2]
[379930357,1755442260037,-584.35,0.00019836,2]
[379930359,1755442260047,-480.0,0.00019836,2]
[379930361,1755442260057,-480.0,0.00019836,2]
[379930363,1755442260067,-480.0,0.00019836,2]
[379930365,1755442260076,-480.0,0.00019836,2]
[379930367,1755442260086,-480.0,0.00019836,2]
[379930369,1755442260096,-492.35,0.00019836,2]
[379930371,1755442260106,-305.54314141,0.00019836,2]
[379930373,1755442260116,-591.93975049,0.00019836,2]
[379930375,1755442260125,-443.37954409,0.00019836,2]
[379930377,1755442260135,-480.0,0.00019836,2]
[379930379,1755442260145,-480.0,0.00019836,2]
[379930381,1755442260154,-480.0,0.00019836,2]
[379930383,1755442260164,-480.0,0.00019836,2]
[379930385,1755442260173,-460.0,0.00019836,2]
[379930387,1755442260183,-480.0,0.00019836,2]
[379930389,1755442260193,-480.0,0.00019837,2]
[379930391,1755442260202,-509.45951943,0.00019837,2]
[379930393,1755442260212,-151.0,0.00019837,2]
[379930395,1755442260221,-480.0,0.00019837,2]
[379930397,1755442260231,-480.0,0.00019837,2]
[379930399,1755442260241,-480.0,0.00019837,2]
[379930401,1755442260251,-480.0,0.00019837,2]
[379930403,1755442260261,-894.92,0.00019837,2]
[379930405,1755442260271,-480.0,0.00019837,2]
[379930407,1755442260280,-480.0,0.00019837,2]
[379930409,1755442260290,-480.0,0.00019837,2]
[379930411,1755442260299,-460.0,0.00019837,2]
[379930413,1755442260308,-480.0,0.00019837,2]
[379930415,1755442260318,-151.0,0.00019837,2]
[379930417,1755442260328,-151.0,0.00019837,2]
[379930419,1755442260338,-480.0,0.00019837,2]
[379930421,1755442260347,-480.0,0.00019837,2]
[379930422,1755442260357,-592.12057616,0.00019837,2]
[379930424,1755442260366,-151.0,0.00019837,2]
[379930426,1755442260376,-7675.82,0.00019837,2]
[379930428,1755442260385,-286.886124,0.00019837,2]
[379930430,1755442260395,-286.886124,0.00019837,2]
[379930432,1755442260404,-990.44,0.00019837,2]
[379930434,1755442260413,-151.0,0.00019837,2]
[379930436,1755442260424,-5032.79,0.00019837,2]
[379930438,1755442260433,-480.0,0.00019838,2]
[379930440,1755442260443,-480.0,0.00019838,2]
[379930442,1755442260453,-151.0,0.00019838,2]
[379930444,1755442260464,-432.6,0.00019838,2]
[379930445,1755442260475,-151.0,0.00019838,2]
[379930446,1755442260484,-300.912384,0.00019838,2]
[379930447,1755442260494,-234.40487785,0.00019838,2]
[379930448,1755442260504,-151.0,0.00019838,2]
[379930449,1755442260513,-480.0,0.00019838,2]
[379930450,1755442260523,-480.0,0.00019838,2]
[379930451,1755442260532,-151.0,0.00019838,2]
[379930452,1755442260542,-151.0,0.00019838,2]
[379930453,1755442260551,-323.570503,0.00019838,2]
[379930454,1755442260560,-323.570503,0.00019838,2]
[379930455,1755442260569,-480.0,0.00019838,2]
[379930456,1755442260579,-480.0,0.00019838,2]
[379930457,1755442260588,-480.0,0.00019838,2]
[379930458,1755442260597,-788.99,0.00019838,2]
[379930459,1755442260609,-613.42,0.00019838,2]
[379930460,1755442260618,-151.0,0.00019838,2]
[379930461,1755442260627,-480.0,0.00019838,2]
[379930462,1755442260637,-581.88,0.00019838,2]
[379930463,1755442260647,-480.0,0.00019838,2]
[379930464,1755442260656,-480.0,0.00019838,2]
[379930465,1755442260665,-1673.56,0.00019838,2]
[379930466,1755442260675,-480.0,0.00019838,2]
[379930467,1755442260686,-2358.67,0.00019838,2]
[379930468,1755442260695,-1062.873252,0.00019863,2]
[379930469,1755442260704,-1000.0,0.00019868,2]
[379930470,1755442260713,-1233.23989062,0.00019868,2]
[379930471,1755442260723,-1500.0,0.00019868,2]
[379930472,1755442260741,-1500.0,0.00019868,2]
[379930473,1755442260751,-1500.0,0.00019868,2]
[379930474,1755442260760,-1500.0,0.00019868,2]
[379930475,1755442260770,-420.5,0.00019879,2]
[379930476,1755442260780,-151.0,0.000199,2]
[379930477,1755442260789,-151.0,0.000199,2]
[379930478,1755442260798,-151.0,0.000199,2]
[379930479,1755442260807,-151.0,0.000199,2]
[379930480,1755442260816,-204.815284,0.000199,2]
[379930481,1755442260827,-204.815284,0.000199,2]
[379930482,1755442260841,-453.86465756,0.000199,4]
[379930483,1755442260858,-151.0,0.000199,2]
[379930484,1755442260867,-151.0,0.000199,2]
[379930485,1755442260877,-8827.72446871,0.000199,2]
[379930486,1755442260886,-422.22633313,0.00019939,2]
[379930487,1755442260897,-389.09212,0.0001994,2]
[379930488,1755442260907,-389.09212,0.0001994,2]
[379930489,1755442260916,-170.005422,0.00019956,2]
[379930490,1755442260925,-151.0,0.00019956,2]
[379930491,1755442260934,-151.0,0.00019958,2]
[379930492,1755442260943,-151.0,0.00019958,2]
[379930493,1755442260953,-151.0,0.00019958,2]
[379930494,1755442260962,-658.0,0.00019968,2]
[379930495,1755442260972,-160.62292884,0.00019973,2]
[379930496,1755442260982,-415.34722731,0.00019973,2]
[379930497,1755442260991,-340.42651408,0.00019973,2]
[379930498,1755442261001,-158.61775077,0.00019973,2]
[379930499,1755442261010,-248.73521794,0.00019973,2]
[379930500,1755442261019,-400.51360892,0.00019973,2]
[379930501,1755442261028,-500.0,0.00019973,2]
[379930502,1755442261037,-500.0,0.00019973,2]
[379930503,1755442261047,-158.61449762,0.00019973,2]
[379930504,1755442261056,-500.0,0.00019973,2]
[379930505,1755442261065,-500.0,0.00019973,2]
[379930506,1755442261075,-158.62313276,0.00019973,2]
[379930507,1755442261084,-500.0,0.00019973,2]
[379930508,1755442261093,-188.65528262,0.00019973,2]
[379930509,1755442261102,-500.0,0.00019973,2]
[379930510,1755442261112,-158.20000211,0.00019973,2]
[379930511,1755442261121,-500.0,0.00019973,2]
[379930512,1755442261130,-500.16719209,0.00019973,2]
[379930513,1755442261139,-445.5478031,0.00019973,2]
[379930514,1755442261148,-500.0,0.00019973,2]
[379930515,1755442261157,-500.0,0.00019973,2]
[379930516,1755442261166,-500.0,0.00019973,2]
[379930517,1755442261175,-500.0,0.00019973,2]
[379930518,1755442261185,-500.17107343,0.00019973,2]
[379930519,1755442261194,-500.0,0.00019973,2]
[379930520,1755442261203,-500.0,0.00019973,2]
[379930521,1755442261212,-500.0,0.00019973,2]
[379930522,1755442261221,-500.99412831,0.00019973,2]
[379930523,1755442261231,-500.0,0.00019973,2]
[379930524,1755442261239,-500.0,0.00019973,2]
[379930525,1755442261249,-500.0,0.00019973,2]
[379930526,1755442261258,-501.74670769,0.00019973,2]
[379930527,1755442261267,-500.0,0.00019973,2]
[379930528,1755442261277,-168.89872184,0.00019973,2]
[379930529,1755442261286,-500.22350934,0.00019973,2]
[379930530,1755442261295,-500.0,0.00019973,2]
[379930531,1755442261305,-500.0,0.00019973,2]
[379930532,1755442261314,-500.0,0.00019973,2]
[379930533,1755442261323,-500.0,0.00019973,2]
[379930534,1755442261332,-500.0,0.00019973,2]
[379930535,1755442261341,-500.0,0.00019973,2]
[379930536,1755442261351,-500.0,0.00019973,2]
[379930537,1755442261361,-500.0,0.00019973,2]
[379930538,1755442261371,-500.0,0.00019973,2]
[379930539,1755442261380,-521.8552445,0.00019973,2]
[379930540,1755442261389,-217.04616223,0.00019973,2]
[379930541,1755442261399,-500.0,0.00019973,2]
[379930542,1755442261408,-500.0,0.00019973,2]
[379930543,1755442261417,-500.0,0.00019973,2]
[379930544,1755442261426,-500.0,0.00019973,2]
[379930545,1755442261437,-560.68640199,0.00019973,2]
[379930546,1755442261446,-500.0,0.00019973,2]
[379930547,1755442261455,-500.0,0.00019973,2]
[379930548,1755442261464,-500.0,0.00019973,2]
[379930549,1755442261474,-237.57852605,0.00019973,2]
[379930550,1755442261483,-500.0,0.00019973,2]
[379930551,1755442261492,-500.0,0.00019973,2]
[379930552,1755442261502,-16850.21950294,0.0002,2]
[379930553,1755442261511,-15807.57778359,0.0002,2]
[379930554,1755442261521,-12277.37690369,0.0002,2]
[379930555,1755442261531,-19615.26985351,0.0002,2]
[379930556,1755442261540,-68322.52098655,0.0002,2]
[379930557,1755442261550,-28327.29049146,0.0002,2]
[379930558,1755442261560,-151.0,0.0002,2]
[379930559,1755442261570,-151.0,0.0002,2]
[379930560,1755442261579,-389.09212,0.0002,2]
[379930561,1755442261589,-389.09212,0.0002,2]
[379930562,1755442261598,-151.0,0.0002,2]
[379930563,1755442261610,-151.0,0.0002,2]
[379930564,1755442261618,-151.0,0.0002,2]
[379930565,1755442261627,-151.0,0.0002,2]
[379930566,1755442261636,-151.0,0.0002,2]
[379930567,1755442261647,-151.0,0.0002,2]
[379930568,1755442261656,-151.0,0.0002,2]
[379930569,1755442261665,-151.0,0.0002,2]
[379930570,1755442261674,-151.0,0.0002,2]
[379930571,1755442261686,-196.023198,0.0002,2]
[379930572,1755442261696,-151.0,0.0002,2]
[379930573,1755442261706,-151.0,0.0002,2]
[379930574,1755442261715,-204.815284,0.0002,2]
[379930575,1755442261724,-151.0,0.0002,2]
[379930576,1755442261734,-151.0,0.0002,2]
[379930577,1755442261743,-151.0,0.0002,2]
[379930578,1755442261752,-204.815284,0.0002,2]
[379930579,1755442261761,-224.767121,0.0002,2]
[379930580,1755442261771,-151.0,0.0002,2]
[379930581,1755442261780,-153.719746,0.0002,2]
[379930582,1755442261790,-151.0,0.0002,2]
[379930583,1755442261802,-323.570503,0.0002,2]
[379930584,1755442261813,-323.570503,0.0002,2]
[379930585,1755442261823,-151.0,0.0002,2]
[379930588,1755442261931,-173.064335,0.0002,2]
[379930589,1755442261941,-173.064335,0.0002,2]
[379930590,1755442261951,-151.0,0.0002,2]
[379930591,1755442261960,-151.0,0.0002,2]
[379930592,1755442261970,-151.0,0.0002,2]
[379930593,1755442261981,-151.0,0.0002,2]
[379930594,1755442261990,-151.0,0.0002,2]
[379930595,1755442262000,-286.886124,0.0002,2]
[379930596,1755442262008,-286.886124,0.0002,2]
[379930597,1755442262018,-151.0,0.0002,2]
[379930598,1755442262028,-151.0,0.0002,2]
[379930599,1755442262037,-151.0,0.0002,2]
[379930600,1755442262047,-249.015371,0.0002,2]
[379930601,1755442262056,-4000.0,0.0002,4]
[379930602,1755442262066,-15992.82517289,0.00020009,2]
[379930603,1755442262076,-658.0,0.00020011,2]
[379930604,1755442262085,-527.36,0.00020013,2]
[379930605,1755442262095,-912.72,0.00020013,2]
[379930606,1755442262104,-480.0,0.00020013,2]
[379930607,1755442262115,-563.11,0.00020013,2]
[379930608,1755442262124,-480.0,0.00020013,2]
[379930609,1755442262134,-480.0,0.00020013,2]
[379930610,1755442262145,-591.29,0.00020013,2]
[379930611,1755442262154,-480.0,0.00020013,2]
[379930612,1755442262164,-1163.69,0.00020013,2]
[379930613,1755442262173,-480.0,0.00020013,2]
[379930614,1755442262183,-480.0,0.00020013,2]
[379930615,1755442262192,-480.0,0.00020013,2]
[379930616,1755442262201,-480.0,0.00020013,2]
[379930617,1755442262211,-908.19,0.00020013,2]
[379930618,1755442262220,-928.64,0.00020013,2]
[379930619,1755442262230,-480.0,0.00020013,2]
[379930620,1755442262240,-480.0,0.00020013,2]
[379930621,1755442262250,-1949.06,0.00020013,2]
[379930622,1755442262259,-709.65,0.00020013,2]
[379930623,1755442262269,-480.0,0.00020013,2]
[379930624,1755442262279,-659.52,0.00020013,2]
[379930625,1755442262288,-480.0,0.00020013,2]
[379930626,1755442262298,-2225.78,0.00020013,2]
[379930627,1755442262307,-480.0,0.00020013,2]
[379930628,1755442262317,-1000.32,0.00020013,2]
[379930629,1755442262326,-480.0,0.00020013,2]
[379930630,1755442262335,-1436.82,0.00020013,2]
[379930631,1755442262345,-6061.46,0.00020013,2]
[379930632,1755442262355,-480.0,0.00020013,2]
[379930633,1755442262364,-1175.2,0.00020013,2]
[379930634,1755442262374,-763.93,0.00020013,2]
[379930635,1755442262383,-480.0,0.00020013,2]
[379930636,1755442262393,-526.35,0.00020013,2]
[379930637,1755442262403,-151.0,0.00020013,2]
[379930638,1755442262412,-480.0,0.00020013,2]
[379930639,1755442262422,-480.0,0.00020013,2]
[379930640,1755442262430,-480.0,0.00020013,2]
[379930641,1755442262439,-715.83,0.00020013,2]
[379930642,1755442262449,-151.0,0.00020013,2]
[379930643,1755442262459,-480.0,0.00020013,2]
[379930644,1755442262467,-695.09,0.00020013,2]
[379930645,1755442262477,-194.79652405,0.00020013,2]
[379930646,1755442262486,-494.32,0.00020013,2]
[379930647,1755442262496,-480.0,0.00020013,2]
[379930648,1755442262506,-480.0,0.00020013,2]
[379930649,1755442262516,-480.0,0.00020013,2]
[379930650,1755442262525,-504.66,0.00020013,2]
[379930651,1755442262535,-160.0,0.0002004,3]
[379930652,1755442262544,-293.31030359,0.00020042,2]
[379930653,1755442262554,-420.5,0.00020046,2]
[379930655,1755442262563,-1500.0,0.00020047,2]
[379930657,1755442262573,-151.0,0.00020095,2]
[379930659,1755442262583,-638.72,0.00020095,2]
[379930661,1755442262593,-151.0,0.000201,4]
[379930663,1755442262603,-480.0,0.00020108,2]
[379930665,1755442262618,-480.0,0.00020108,2]
[379930667,1755442262629,-1819.3,0.00020108,2]
[379930669,1755442262639,-480.0,0.00020109,2]
[379930671,1755442262650,-466.22661544,0.00020109,2]
[379930672,1755442262659,-480.0,0.00020109,2]
[379930673,1755442262669,-480.0,0.00020109,2]
[379930675,1755442262678,-480.0,0.00020109,2]
[379930677,1755442262689,-3256.49,0.00020109,2]
[379930679,1755442262698,-151.0,0.0002011,2]
[379930681,1755442262708,-480.0,0.0002011,2]
[379930683,1755442262718,-480.0,0.0002011,2]
[379930685,1755442262727,-480.0,0.0002011,2]
[379930687,1755442262736,-480.0,0.0002011,2]
[379930689,1755442262746,-698.95,0.0002011,2]
[379930691,1755442262755,-480.0,0.0002011,2]
[379930693,1755442262765,-480.0,0.0002011,2]
[379930695,1755442262775,-687.45,0.0002011,2]
[379930697,1755442262785,-480.0,0.0002011,2]
[379930699,1755442262794,-480.0,0.0002011,2]
[379930701,1755442262803,-160.81,0.0002011,2]
[379930703,1755442262813,-480.0,0.0002011,2]
[379930705,1755442262823,-480.0,0.0002011,2]
[379930706,1755442262833,-480.0,0.0002011,2]
[379930708,1755442262842,-549.85,0.0002011,2]
[379930710,1755442262851,-480.0,0.0002011,2]
[379930712,1755442262861,-480.0,0.0002011,2]
[379930714,1755442262870,-971.72,0.0002011,2]
[379930716,1755442262880,-480.0,0.0002011,2]
[379930718,1755442262890,-480.0,0.0002011,2]
[379930720,1755442262900,-573.88,0.0002011,2]
[379930722,1755442262909,-480.0,0.0002011,2]
[379930724,1755442262919,-151.0,0.0002011,2]
[379930726,1755442262930,-151.0,0.0002011,2]
[379930728,1755442262941,-719.18,0.0002011,2]
[379930730,1755442262950,-480.0,0.0002011,2]
[379930732,1755442262960,-480.0,0.0002011,2]
[379930734,1755442262970,-480.0,0.0002011,2]
[379930736,1755442262979,-480.0,0.0002011,2]
[379930738,1755442262990,-584.35,0.0002011,2]
[379930740,1755442262999,-480.0,0.0002011,2]
[379930742,1755442263010,-480.0,0.0002011,2]
[379930744,1755442263021,-151.0,0.0002011,2]
[379930746,1755442263030,-480.0,0.0002011,2]
[379930748,1755442263040,-480.0,0.0002011,2]
[379930750,1755442263051,-480.0,0.0002011,2]
[379930752,1755442263061,-492.35,0.0002011,2]
[379930754,1755442263072,-480.0,0.0002011,2]
[379930756,1755442263082,-480.0,0.0002011,2]
[379930758,1755442263093,-151.0,0.0002011,2]
[379930760,1755442263110,-480.0,0.0002011,2]
[379930762,1755442263131,-434.1953514,0.0002011,2]
[379930764,1755442263152,-151.0,0.00020111,2]
[379930766,1755442263167,-151.0,0.00020111,2]
[379930768,1755442263177,-781.344543,0.00020111,2]
[379930770,1755442263187,-781.344543,0.00020111,2]
[379930772,1755442263197,-151.0,0.00020111,2]
[379930774,1755442263207,-151.0,0.00020111,2]
[379930776,1755442263216,-151.0,0.00020111,2]
[379930778,1755442263225,-273.452734,0.00020111,2]
[379930780,1755442263235,-151.0,0.00020111,2]
[379930782,1755442263244,-480.0,0.00020111,2]
[379930784,1755442263254,-480.0,0.00020111,2]
[379930786,1755442263264,-464.16402407,0.00020111,2]
[379930788,1755442263274,-894.92,0.00020111,2]
[379930790,1755442263284,-545.43171473,0.00020111,2]
[379930792,1755442263294,-480.0,0.00020111,2]